[Event "Late-Titled-Tuesday-Blitz-March-26-2024"]
[Site "Chess.com"]
[Date "2024.03.26"]
[Round "11"]
[White "David_ATM"]
[Black "dolynachess"]
[Result "1/2-1/2"]
[WhiteElo "2391"]
[BlackElo "2508"]
[TimeControl "180+1"]
[EndTime "16:05:30 PDT"]
[Termination "Game drawn by repetition"]

1. e4 {[%clk 0:03:00.9]} 1... c5 {[%clk 0:02:59.8]} 2. c3 {[%clk 0:03:01.2]}
2... d6 {[%clk 0:03:00.4]} 3. d4 {[%clk 0:03:01.5]} 3... cxd4 {[%clk 0:03:01]}
4. cxd4 {[%clk 0:03:02.4]} 4... f6 {[%clk 0:03:01]} 5. Nf3 {[%clk 0:02:52.8]}
5... e5 {[%clk 0:02:58.5]} 6. dxe5 {[%clk 0:02:52]} 6... dxe5 {[%clk 0:02:56.8]}
7. Qxd8+ {[%clk 0:02:50.4]} 7... Kxd8 {[%clk 0:02:57.7]} 8. Nc3 {[%clk
0:02:49.9]} 8... Bb4 {[%clk 0:02:48.4]} 9. Bd2 {[%clk 0:02:49.9]} 9... Bxc3
{[%clk 0:02:45.3]} 10. Bxc3 {[%clk 0:02:50.8]} 10... Nc6 {[%clk 0:02:41.8]} 11.
Bb5 {[%clk 0:02:44]} 11... Nge7 {[%clk 0:02:39.4]} 12. O-O {[%clk 0:02:33.6]}
12... Be6 {[%clk 0:02:36.2]} 13. a3 {[%clk 0:02:17]} 13... a6 {[%clk 0:02:31.1]}
14. Ba4 {[%clk 0:02:16.9]} 14... Kc7 {[%clk 0:02:27]} 15. Rac1 {[%clk
0:02:16.2]} 15... b5 {[%clk 0:02:13.4]} 16. Bc2 {[%clk 0:02:06.2]} 16... Rhd8
{[%clk 0:01:52.8]} 17. Rfe1 {[%clk 0:02:05.1]} 17... Kb6 {[%clk 0:01:50.3]} 18.
Bd2 {[%clk 0:01:57.3]} 18... Bg4 {[%clk 0:01:26.5]} 19. Be3+ {[%clk 0:01:56]}
19... Kb7 {[%clk 0:01:26.3]} 20. Nd2 {[%clk 0:01:56.4]} 20... Be6 {[%clk
0:01:12.7]} 21. Nb3 {[%clk 0:01:56.5]} 21... Bxb3 {[%clk 0:01:11.6]} 22. Bxb3
{[%clk 0:01:57.4]} 22... Nd4 {[%clk 0:01:09.3]} 23. Bf7 {[%clk 0:01:19.2]} 23...
Rac8 {[%clk 0:01:05.3]} 24. Kf1 {[%clk 0:01:19.5]} 24... Nc2 {[%clk 0:01:00.4]}
25. Red1 {[%clk 0:01:03.2]} 25... Nxe3+ {[%clk 0:00:57.3]} 26. fxe3 {[%clk
0:01:03.1]} 26... Rxc1 {[%clk 0:00:55]} 27. Rxc1 {[%clk 0:01:04]} 27... Rd2
{[%clk 0:00:53.4]} 28. b4 {[%clk 0:01:02.4]} 28... Kb6 {[%clk 0:00:50.4]} 29. h3
{[%clk 0:00:57.9]} 29... Rd3 {[%clk 0:00:45.2]} 30. Kf2 {[%clk 0:00:57.9]} 30...
Rxa3 {[%clk 0:00:44.8]} 31. Rd1 {[%clk 0:00:58.5]} 31... Nc6 {[%clk 0:00:35.3]}
32. Rd7 {[%clk 0:00:43.9]} 32... Nxb4 {[%clk 0:00:31.1]} 33. Bg8 {[%clk
0:00:36]} 33... Nd3+ {[%clk 0:00:17.6]} 34. Ke2 {[%clk 0:00:33.2]} 34... Nc5
{[%clk 0:00:17.2]} 35. Rxg7 {[%clk 0:00:32.9]} 35... Nxe4 {[%clk 0:00:17.2]} 36.
g4 {[%clk 0:00:23.9]} 36... b4 {[%clk 0:00:15.2]} 37. Rxh7 {[%clk 0:00:18.2]}
37... b3 {[%clk 0:00:13.6]} 38. Kd3 {[%clk 0:00:18.7]} 38... Nc5+ {[%clk
0:00:12.8]} 39. Kc3 {[%clk 0:00:19.1]} 39... a5 {[%clk 0:00:13.2]} 40. h4 {[%clk
0:00:07.3]} 40... a4 {[%clk 0:00:13]} 41. h5 {[%clk 0:00:07.9]} 41... Ra2 {[%clk
0:00:12.9]} 42. Rh8 {[%clk 0:00:05.5]} 42... Rc2+ {[%clk 0:00:11.7]} 43. Kb4
{[%clk 0:00:06.1]} 43... b2 {[%clk 0:00:11.3]} 44. Ba2 {[%clk 0:00:06.7]} 44...
Rc1 {[%clk 0:00:06.3]} 45. Ka3 {[%clk 0:00:05.8]} 45... b1=Q {[%clk 0:00:06.1]}
46. Bxb1 {[%clk 0:00:05.2]} 46... Rxb1 {[%clk 0:00:07]} 47. h6 {[%clk 0:00:05]}
47... Rb3+ {[%clk 0:00:07.3]} 48. Ka2 {[%clk 0:00:05]} 48... Rxe3 {[%clk
0:00:04.1]} 49. h7 {[%clk 0:00:05.6]} 49... Rh3 {[%clk 0:00:03.9]} 50. Rb8+
{[%clk 0:00:06.3]} 50... Kc6 {[%clk 0:00:04.3]} 51. h8=Q {[%clk 0:00:07.2]}
51... Rxh8 {[%clk 0:00:04.2]} 52. Rxh8 {[%clk 0:00:08.1]} 52... Kd5 {[%clk
0:00:04.5]} 53. Rh6 {[%clk 0:00:05.4]} 53... Ne4 {[%clk 0:00:03]} 54. Ka3 {[%clk
0:00:04.8]} 54... Kd4 {[%clk 0:00:02.9]} 55. Kxa4 {[%clk 0:00:05.1]} 55... Ke3
{[%clk 0:00:03.4]} 56. Kb4 {[%clk 0:00:03.4]} 56... Kf4 {[%clk 0:00:03.8]} 57.
Kc4 {[%clk 0:00:04.1]} 57... Kxg4 {[%clk 0:00:02.7]} 58. Kd3 {[%clk 0:00:04.6]}
58... Kf5 {[%clk 0:00:02.2]} 59. Rh5+ {[%clk 0:00:04.5]} 59... Ng5 {[%clk
0:00:02.4]} 60. Ke3 {[%clk 0:00:05]} 60... Kg4 {[%clk 0:00:02.1]} 61. Rh8 {[%clk
0:00:05.6]} 61... f5 {[%clk 0:00:02.3]} 62. Ra8 {[%clk 0:00:06.1]} 62... f4+
{[%clk 0:00:02.6]} 63. Kf2 {[%clk 0:00:06.4]} 63... e4 {[%clk 0:00:02.2]} 64.
Ra4 {[%clk 0:00:05.6]} 64... e3+ {[%clk 0:00:02.1]} 65. Ke2 {[%clk 0:00:06.2]}
65... Nh3 {[%clk 0:00:01.4]} 66. Ra8 {[%clk 0:00:04.4]} 66... Ng5 {[%clk
0:00:02]} 67. Rg8 {[%clk 0:00:04.8]} 67... Kf5 {[%clk 0:00:02.1]} 68. Rf8+
{[%clk 0:00:05]} 68... Kg4 {[%clk 0:00:03]} 69. Rg8 {[%clk 0:00:05.4]} 69... Kh4
{[%clk 0:00:03.8]} 70. Rh8+ {[%clk 0:00:05.7]} 70... Kg4 {[%clk 0:00:04.2]} 71.
Rg8 {[%clk 0:00:06.6]} 1/2-1/2

[Event "Late-Titled-Tuesday-Blitz-March-26-2024"]
[Site "Chess.com"]
[Date "2024.03.26"]
[Round "11"]
[White "MyDream003"]
[Black "sergiochess83"]
[Result "1/2-1/2"]
[WhiteElo "2816"]
[BlackElo "2992"]
[TimeControl "180+1"]
[EndTime "16:05:39 PDT"]
[Termination "Game drawn by repetition"]

1. e4 {[%clk 0:02:57.5]} 1... e6 {[%clk 0:02:58.5]} 2. d4 {[%clk 0:02:57.8]}
2... d5 {[%clk 0:02:58.4]} 3. Nd2 {[%clk 0:02:58.5]} 3... c5 {[%clk 0:02:56.6]}
4. Ngf3 {[%clk 0:02:57.4]} 4... cxd4 {[%clk 0:02:51.4]} 5. exd5 {[%clk
0:02:57.8]} 5... Qxd5 {[%clk 0:02:49]} 6. Bc4 {[%clk 0:02:56.7]} 6... Qd6 {[%clk
0:02:48.9]} 7. O-O {[%clk 0:02:56.7]} 7... Nf6 {[%clk 0:02:49.2]} 8. Nb3 {[%clk
0:02:56.7]} 8... Nc6 {[%clk 0:02:49.3]} 9. Nbxd4 {[%clk 0:02:56.9]} 9... Nxd4
{[%clk 0:02:49.6]} 10. Nxd4 {[%clk 0:02:49.9]} 10... a6 {[%clk 0:02:49.5]} 11.
c3 {[%clk 0:02:49.8]} 11... Bd7 {[%clk 0:02:48.5]} 12. Qe2 {[%clk 0:02:49.5]}
12... Be7 {[%clk 0:02:35.4]} 13. Bg5 {[%clk 0:02:46.6]} 13... Qc5 {[%clk
0:02:30.6]} 14. Be3 {[%clk 0:02:45.5]} 14... Qc7 {[%clk 0:02:29.8]} 15. Bb3
{[%clk 0:02:38.9]} 15... O-O {[%clk 0:02:29]} 16. h3 {[%clk 0:02:38.5]} 16...
Rfe8 {[%clk 0:02:27.8]} 17. Rad1 {[%clk 0:02:37.9]} 17... Rad8 {[%clk
0:02:26.8]} 18. Rfe1 {[%clk 0:02:33.4]} 18... h6 {[%clk 0:01:49.1]} 19. Qf3
{[%clk 0:02:20.7]} 19... a5 {[%clk 0:01:37.3]} 20. Bc2 {[%clk 0:02:13.6]} 20...
b5 {[%clk 0:01:29.6]} 21. Bf4 {[%clk 0:02:12.8]} 21... Qb6 {[%clk 0:01:28.8]}
22. Be5 {[%clk 0:02:11.7]} 22... b4 {[%clk 0:01:20.7]} 23. Qd3 {[%clk
0:02:05.9]} 23... Kf8 {[%clk 0:01:08.4]} 24. Qg3 {[%clk 0:01:25.1]} 24... Bc8
{[%clk 0:00:55.1]} 25. Bc7 {[%clk 0:01:22.6]} 25... Qc5 {[%clk 0:00:51.7]} 26.
Bxd8 {[%clk 0:01:17.5]} 26... Rxd8 {[%clk 0:00:50]} 27. Nb3 {[%clk 0:01:05.7]}
27... Qb6 {[%clk 0:00:47.2]} 28. Rxd8+ {[%clk 0:01:05]} 28... Bxd8 {[%clk
0:00:47.4]} 29. cxb4 {[%clk 0:01:01]} 29... Qxb4 {[%clk 0:00:40.9]} 30. Rd1
{[%clk 0:01:00.9]} 30... Bb6 {[%clk 0:00:26.2]} 31. Qd6+ {[%clk 0:01:00.1]}
31... Qxd6 {[%clk 0:00:25.8]} 32. Rxd6 {[%clk 0:01:01]} 32... Nd5 {[%clk
0:00:26.4]} 33. Rc6 {[%clk 0:00:55.4]} 33... Bd7 {[%clk 0:00:19]} 34. Rc4 {[%clk
0:00:55.4]} 34... Ke7 {[%clk 0:00:16.3]} 35. Re4 {[%clk 0:00:50.8]} 35... f5
{[%clk 0:00:14.9]} 36. Re1 {[%clk 0:00:51]} 36... Kd6 {[%clk 0:00:15.2]} 37. a3
{[%clk 0:00:49.5]} 37... g5 {[%clk 0:00:13.3]} 38. Nd2 {[%clk 0:00:49.9]} 38...
Bb5 {[%clk 0:00:11.8]} 39. Bb3 {[%clk 0:00:46.7]} 39... Bd4 {[%clk 0:00:12.1]}
40. Bc4 {[%clk 0:00:34.6]} 40... Bc6 {[%clk 0:00:12.4]} 41. Bxd5 {[%clk
0:00:23.1]} 41... Bxd5 {[%clk 0:00:12.3]} 42. Rb1 {[%clk 0:00:15.2]} 42... Kc5
{[%clk 0:00:05.8]} 43. b4+ {[%clk 0:00:15.1]} 43... axb4 {[%clk 0:00:05.9]} 44.
axb4+ {[%clk 0:00:16]} 44... Kb5 {[%clk 0:00:06.3]} 45. Nb3 {[%clk 0:00:11.1]}
45... Bc3 {[%clk 0:00:05.3]} 46. Nc5 {[%clk 0:00:10.5]} 46... Kc4 {[%clk
0:00:03.8]} 47. Nd7 {[%clk 0:00:08.9]} 47... Bxb4 {[%clk 0:00:02.7]} 48. Nb6+
{[%clk 0:00:08.7]} 48... Kc5 {[%clk 0:00:03.2]} 49. Nxd5 {[%clk 0:00:08.8]}
49... exd5 {[%clk 0:00:04.1]} 50. Kf1 {[%clk 0:00:09.4]} 50... d4 {[%clk
0:00:04.3]} 51. Ke2 {[%clk 0:00:09.8]} 51... Kc4 {[%clk 0:00:04.9]} 52. Rd1
{[%clk 0:00:08.9]} 52... h5 {[%clk 0:00:04.6]} 53. Rd3 {[%clk 0:00:07.4]} 53...
g4 {[%clk 0:00:05]} 54. hxg4 {[%clk 0:00:07.1]} 54... hxg4 {[%clk 0:00:05.9]}
55. f3 {[%clk 0:00:03.2]} 55... Bd6 {[%clk 0:00:06]} 56. fxg4 {[%clk 0:00:03.4]}
56... fxg4 {[%clk 0:00:06.9]} 57. Kd2 {[%clk 0:00:03.2]} 57... Bf4+ {[%clk
0:00:06.8]} 58. Kc2 {[%clk 0:00:03.9]} 58... Be3 {[%clk 0:00:07.1]} 59. Rd1
{[%clk 0:00:04.5]} 59... g3 {[%clk 0:00:07.6]} 60. Rd3 {[%clk 0:00:04.6]} 60...
Kd5 {[%clk 0:00:06.3]} 61. Rd1 {[%clk 0:00:04.9]} 61... Ke4 {[%clk 0:00:06.8]}
62. Rf1 {[%clk 0:00:05.1]} 62... Bf2 {[%clk 0:00:07]} 63. Kd2 {[%clk 0:00:05.4]}
63... Be3+ {[%clk 0:00:07.2]} 64. Ke2 {[%clk 0:00:05.4]} 64... d3+ {[%clk
0:00:07.8]} 65. Kd1 {[%clk 0:00:06.1]} 65... Bf2 {[%clk 0:00:07.3]} 66. Rh1
{[%clk 0:00:06.4]} 66... Bd4 {[%clk 0:00:06.2]} 67. Rf1 {[%clk 0:00:06.1]} 67...
Bf2 {[%clk 0:00:05.8]} 68. Rh1 {[%clk 0:00:06.5]} 68... Bd4 {[%clk 0:00:06.2]}
69. Kd2 {[%clk 0:00:06.8]} 69... Be3+ {[%clk 0:00:06.6]} 70. Kc3 {[%clk
0:00:05]} 70... Bd4+ {[%clk 0:00:07.5]} 71. Kd2 {[%clk 0:00:05.4]} 71... Be3+
{[%clk 0:00:07.8]} 72. Kd1 {[%clk 0:00:05.4]} 72... Bd4 {[%clk 0:00:08.7]}
1/2-1/2

[Event "Late-Titled-Tuesday-Blitz-March-26-2024"]
[Site "Chess.com"]
[Date "2024.03.26"]
[Round "11"]
[White "IsuruAlahakoon"]
[Black "newauto"]
[Result "0-1"]
[WhiteElo "2346"]
[BlackElo "2219"]
[TimeControl "180+1"]
[EndTime "16:05:51 PDT"]
[Termination "newauto won on time"]

1. Nf3 {[%clk 0:02:00.9]} 1... c6 {[%clk 0:03:00.9]} 2. d4 {[%clk 0:02:00.5]}
2... d5 {[%clk 0:03:01.8]} 3. e3 {[%clk 0:02:00.7]} 3... Nf6 {[%clk 0:02:59.7]}
4. Bd3 {[%clk 0:02:01.1]} 4... Bg4 {[%clk 0:02:56.8]} 5. Nbd2 {[%clk 0:02:00]}
5... e6 {[%clk 0:02:55.9]} 6. O-O {[%clk 0:01:59.7]} 6... Nbd7 {[%clk
0:02:56.1]} 7. b3 {[%clk 0:02:00.2]} 7... Bb4 {[%clk 0:02:45.7]} 8. h3 {[%clk
0:01:53.9]} 8... Bxd2 {[%clk 0:02:39.6]} 9. hxg4 {[%clk 0:01:53.3]} 9... Bc3
{[%clk 0:02:33.7]} 10. Rb1 {[%clk 0:01:51.9]} 10... Nxg4 {[%clk 0:02:32.3]} 11.
Ba3 {[%clk 0:01:48.5]} 11... Qa5 {[%clk 0:02:27.1]} 12. Qc1 {[%clk 0:01:45.6]}
12... Bb4 {[%clk 0:02:18.2]} 13. Bb2 {[%clk 0:01:41.3]} 13... O-O {[%clk
0:02:09.7]} 14. e4 {[%clk 0:01:40.4]} 14... dxe4 {[%clk 0:01:54.6]} 15. Bxe4
{[%clk 0:01:39.8]} 15... Ngf6 {[%clk 0:01:52.4]} 16. Bd3 {[%clk 0:01:38.2]}
16... Rac8 {[%clk 0:01:44]} 17. c3 {[%clk 0:01:27.5]} 17... Bd6 {[%clk
0:01:42.9]} 18. b4 {[%clk 0:01:27.9]} 18... Qh5 {[%clk 0:01:42]} 19. Be2 {[%clk
0:01:18.7]} 19... Ng4 {[%clk 0:01:37.9]} 20. Qg5 {[%clk 0:01:09.7]} 20... Qxg5
{[%clk 0:01:15.9]} 21. Nxg5 {[%clk 0:01:10.6]} 21... Ngf6 {[%clk 0:01:14.6]} 22.
f4 {[%clk 0:01:05.6]} 22... h6 {[%clk 0:01:14.6]} 23. Nh3 {[%clk 0:01:03.5]}
23... b5 {[%clk 0:01:08.9]} 24. g4 {[%clk 0:01:01]} 24... Nd5 {[%clk 0:01:07.5]}
25. g5 {[%clk 0:00:59.2]} 25... a5 {[%clk 0:00:38.3]} 26. gxh6 {[%clk
0:00:54.5]} 26... gxh6 {[%clk 0:00:38]} 27. a3 {[%clk 0:00:44.4]} 27... Kh8
{[%clk 0:00:35.3]} 28. Kh1 {[%clk 0:00:40.7]} 28... Rg8 {[%clk 0:00:34.4]} 29.
f5 {[%clk 0:00:28.4]} 29... Ne3 {[%clk 0:00:31.4]} 30. Rf3 {[%clk 0:00:25.8]}
30... Nxf5 {[%clk 0:00:31]} 31. Rg1 {[%clk 0:00:18.4]} 31... Nf6 {[%clk
0:00:25.6]} 32. Bc1 {[%clk 0:00:17]} 32... Ne4 {[%clk 0:00:23.4]} 33. Bd3 {[%clk
0:00:13.5]} 33... Neg3+ {[%clk 0:00:22.1]} 34. Kg2 {[%clk 0:00:12.4]} 34... Ne2+
{[%clk 0:00:20.8]} 35. Kf2 {[%clk 0:00:12.1]} 35... Nxg1 {[%clk 0:00:20.3]} 36.
Nxg1 {[%clk 0:00:12.9]} 36... Bg3+ {[%clk 0:00:16.6]} 37. Kf1 {[%clk 0:00:12.6]}
37... Bh2 {[%clk 0:00:12.6]} 38. Ne2 {[%clk 0:00:12.1]} 38... Ng3+ {[%clk
0:00:10.2]} 39. Nxg3 {[%clk 0:00:12.1]} 39... Rxg3 {[%clk 0:00:10.3]} 40. Rxg3
{[%clk 0:00:11.8]} 40... Bxg3 {[%clk 0:00:11.2]} 41. Bxh6 {[%clk 0:00:12]} 41...
Bd6 {[%clk 0:00:10.5]} 42. Kf2 {[%clk 0:00:10.7]} 42... axb4 {[%clk 0:00:10]}
43. axb4 {[%clk 0:00:09.3]} 43... Ra8 {[%clk 0:00:10.9]} 44. Be4 {[%clk
0:00:10]} 44... Ra3 {[%clk 0:00:10.7]} 45. Bd2 {[%clk 0:00:08.6]} 45... Ra2
{[%clk 0:00:10.7]} 46. Ke1 {[%clk 0:00:08.9]} 46... Bg3+ {[%clk 0:00:10.6]} 47.
Kd1 {[%clk 0:00:08.5]} 47... Ra6 {[%clk 0:00:08.5]} 48. Ke2 {[%clk 0:00:06.6]}
48... Kg7 {[%clk 0:00:08.1]} 49. Kd3 {[%clk 0:00:06.7]} 49... f5 {[%clk
0:00:08.3]} 50. Bf3 {[%clk 0:00:05.9]} 50... Kf6 {[%clk 0:00:08.5]} 51. Bh6
{[%clk 0:00:04.5]} 51... f4 {[%clk 0:00:08.5]} 52. Bf8 {[%clk 0:00:04.2]} 52...
Ra3 {[%clk 0:00:08.7]} 53. Bd6 {[%clk 0:00:03.2]} 53... Ra6 {[%clk 0:00:08.2]}
54. Be5+ {[%clk 0:00:04.1]} 54... Kf5 {[%clk 0:00:08]} 55. c4 {[%clk 0:00:03.9]}
55... bxc4+ {[%clk 0:00:08]} 56. Kxc4 {[%clk 0:00:04.8]} 56... Ra3 {[%clk
0:00:08.5]} 57. Bxc6 {[%clk 0:00:03.8]} 57... f3 {[%clk 0:00:08.5]} 58. b5
{[%clk 0:00:03.6]} 58... Bxe5 {[%clk 0:00:08.3]} 59. dxe5 {[%clk 0:00:03.4]}
59... f2 {[%clk 0:00:08.6]} 60. Bg2 {[%clk 0:00:04]} 60... Ra1 {[%clk
0:00:08.5]} 61. b6 {[%clk 0:00:04.7]} 61... Rb1 {[%clk 0:00:08.6]} 62. Kc5
{[%clk 0:00:04.4]} 62... Kxe5 {[%clk 0:00:09.1]} 63. Kc6 {[%clk 0:00:04.5]}
63... Kf4 {[%clk 0:00:09.2]} 64. b7 {[%clk 0:00:04.4]} 64... e5 {[%clk
0:00:09.5]} 65. Bf1 {[%clk 0:00:03.9]} 65... e4 {[%clk 0:00:09.1]} 66. Bb5
{[%clk 0:00:04]} 66... Rc1+ {[%clk 0:00:08.4]} 67. Kd6 {[%clk 0:00:03]} 67...
Rd1+ {[%clk 0:00:08.3]} 68. Kc7 {[%clk 0:00:02.6]} 68... Rb1 {[%clk 0:00:07.8]}
69. Kc6 {[%clk 0:00:02]} 69... Rb2 {[%clk 0:00:04.2]} 70. b8=Q+ {[%clk
0:00:01.3]} 70... Ke3 {[%clk 0:00:04.2]} 71. Qb6+ {[%clk 0:00:01.1]} 71... Kf3
{[%clk 0:00:03.8]} 0-1

[Event "Late-Titled-Tuesday-Blitz-March-26-2024"]
[Site "Chess.com"]
[Date "2024.03.26"]
[Round "11"]
[White "giovannibrandao7"]
[Black "katharinareinecke"]
[Result "1-0"]
[WhiteElo "2160"]
[BlackElo "1992"]
[TimeControl "180+1"]
[EndTime "16:06:09 PDT"]
[Termination "giovannibrandao7 won by resignation"]

1. d4 {[%clk 0:02:58.9]} 1... d5 {[%clk 0:02:59.6]} 2. c4 {[%clk 0:02:58.1]}
2... c6 {[%clk 0:02:58.3]} 3. Nf3 {[%clk 0:02:58.4]} 3... Nf6 {[%clk 0:02:53.8]}
4. g3 {[%clk 0:02:58.1]} 4... Bg4 {[%clk 0:02:53.1]} 5. Bg2 {[%clk 0:02:57]}
5... e6 {[%clk 0:02:51]} 6. O-O {[%clk 0:02:56.8]} 6... Be7 {[%clk 0:02:48.9]}
7. Nc3 {[%clk 0:02:56.6]} 7... Nbd7 {[%clk 0:02:46.4]} 8. Qc2 {[%clk 0:02:54.8]}
8... Bf5 {[%clk 0:02:35.8]} 9. Qb3 {[%clk 0:02:34.5]} 9... Qb6 {[%clk 0:02:24]}
10. Bf4 {[%clk 0:02:27.1]} 10... O-O {[%clk 0:02:18.5]} 11. Ne5 {[%clk
0:02:11.3]} 11... Nxe5 {[%clk 0:02:07.9]} 12. Bxe5 {[%clk 0:02:12.2]} 12... Nd7
{[%clk 0:02:04.3]} 13. cxd5 {[%clk 0:02:09.4]} 13... exd5 {[%clk 0:01:58.7]} 14.
e4 {[%clk 0:01:54.1]} 14... Qxb3 {[%clk 0:01:51.8]} 15. axb3 {[%clk 0:01:51]}
15... dxe4 {[%clk 0:01:48.3]} 16. Bxe4 {[%clk 0:01:46.5]} 16... Bxe4 {[%clk
0:01:28.8]} 17. Nxe4 {[%clk 0:01:46.4]} 17... Nxe5 {[%clk 0:01:28.8]} 18. dxe5
{[%clk 0:01:46.3]} 18... Rfd8 {[%clk 0:01:26]} 19. Rad1 {[%clk 0:01:46.4]} 19...
f6 {[%clk 0:01:08.9]} 20. exf6 {[%clk 0:01:40.3]} 20... Bxf6 {[%clk 0:01:06.4]}
21. Nxf6+ {[%clk 0:01:40.5]} 21... gxf6 {[%clk 0:01:06.6]} 22. Kg2 {[%clk
0:01:40.3]} 22... Kf7 {[%clk 0:01:04.7]} 23. Kf3 {[%clk 0:01:40.4]} 23... Re8
{[%clk 0:00:59.5]} 24. Rd7+ {[%clk 0:01:38.1]} 24... Re7 {[%clk 0:00:59.5]} 25.
Rfd1 {[%clk 0:01:38.7]} 25... Re8 {[%clk 0:00:58.4]} 26. Kf4 {[%clk 0:01:38.1]}
26... Rxd7 {[%clk 0:00:57.6]} 27. Rxd7+ {[%clk 0:01:39]} 27... Re7 {[%clk
0:00:58.1]} 28. Rd6 {[%clk 0:01:29.9]} 28... a5 {[%clk 0:00:53.8]} 29. Rd8
{[%clk 0:01:16.7]} 29... Kg6 {[%clk 0:00:51.7]} 30. h4 {[%clk 0:01:12]} 30...
Re2 {[%clk 0:00:49.7]} 31. f3 {[%clk 0:01:09]} 31... Rxb2 {[%clk 0:00:48.2]} 32.
Rd3 {[%clk 0:00:58.2]} 32... b5 {[%clk 0:00:45.8]} 33. g4 {[%clk 0:00:57.7]}
33... a4 {[%clk 0:00:44.6]} 34. h5+ {[%clk 0:00:56.7]} 34... Kf7 {[%clk
0:00:41.1]} 35. bxa4 {[%clk 0:00:52]} 35... bxa4 {[%clk 0:00:32.3]} 36. Rd7+
{[%clk 0:00:51.6]} 36... Kg8 {[%clk 0:00:31]} 37. Ra7 {[%clk 0:00:51.1]} 37...
Rb4+ {[%clk 0:00:30.6]} 38. Kf5 {[%clk 0:00:50.8]} 38... c5 {[%clk 0:00:24.6]}
39. h6 {[%clk 0:00:39.9]} 39... c4 {[%clk 0:00:19.5]} 40. Kxf6 {[%clk 0:00:23]}
40... Rb6+ {[%clk 0:00:19.4]} 41. Ke5 {[%clk 0:00:23.1]} 41... c3 {[%clk
0:00:17.5]} 42. Rxa4 {[%clk 0:00:22.3]} 42... Rc6 {[%clk 0:00:16.8]} 43. Ra1
{[%clk 0:00:22.1]} 43... c2 {[%clk 0:00:16.7]} 44. Rc1 {[%clk 0:00:22.4]} 44...
Kf7 {[%clk 0:00:16.6]} 45. Ke4 {[%clk 0:00:19.9]} 45... Kg6 {[%clk 0:00:16.5]}
46. Kd3 {[%clk 0:00:20.2]} 46... Kxh6 {[%clk 0:00:16.5]} 47. Rxc2 {[%clk
0:00:20.6]} 47... Rd6+ {[%clk 0:00:15]} 48. Ke4 {[%clk 0:00:20.3]} 48... Kg6
{[%clk 0:00:14.8]} 49. Rh2 {[%clk 0:00:20.1]} 49... Re6+ {[%clk 0:00:14.7]} 50.
Kf4 {[%clk 0:00:20]} 50... Rf6+ {[%clk 0:00:14.8]} 51. Kg3 {[%clk 0:00:16.6]}
51... Rc6 {[%clk 0:00:13.7]} 52. Rh5 {[%clk 0:00:13.5]} 52... Rc3 {[%clk
0:00:12.9]} 53. Re5 {[%clk 0:00:12.6]} 53... Ra3 {[%clk 0:00:11.9]} 54. Rc5
{[%clk 0:00:12]} 54... Rb3 {[%clk 0:00:11.7]} 55. Rc6+ {[%clk 0:00:06.7]} 55...
Kg7 {[%clk 0:00:11.4]} 56. Kf4 {[%clk 0:00:04.2]} 56... Rb4+ {[%clk 0:00:11.7]}
57. Kg5 {[%clk 0:00:04.2]} 57... Rb5+ {[%clk 0:00:11.9]} 58. Kh4 {[%clk
0:00:04.8]} 58... Rb4 {[%clk 0:00:12]} 59. Re6 {[%clk 0:00:03.7]} 59... Kf7
{[%clk 0:00:11.7]} 60. Re3 {[%clk 0:00:02.5]} 60... Kg6 {[%clk 0:00:11.3]} 61.
Re4 {[%clk 0:00:02.9]} 61... Rb3 {[%clk 0:00:11.2]} 62. f4 {[%clk 0:00:02.9]}
62... Rb1 {[%clk 0:00:10]} 63. Re6+ {[%clk 0:00:02.1]} 63... Kg7 {[%clk
0:00:10.1]} 64. Re7+ {[%clk 0:00:02.2]} 64... Kg6 {[%clk 0:00:09.7]} 65. Rb7
{[%clk 0:00:02.2]} 65... Rf1 {[%clk 0:00:08.2]} 66. f5+ {[%clk 0:00:01.7]} 66...
Kf6 {[%clk 0:00:02]} 67. g5+ {[%clk 0:00:02.1]} 67... Kxf5 {[%clk 0:00:01.9]}
68. Rf7+ {[%clk 0:00:02.1]} 68... Kg6 {[%clk 0:00:02.3]} 69. Rxf1 {[%clk
0:00:03]} 69... h6 {[%clk 0:00:02.8]} 70. Kg4 {[%clk 0:00:03.5]} 70... hxg5
{[%clk 0:00:02.2]} 71. Re1 {[%clk 0:00:02.7]} 71... Kf6 {[%clk 0:00:02.4]} 72.
Rc1 {[%clk 0:00:03]} 72... Kg6 {[%clk 0:00:02.2]} 73. Rc5 {[%clk 0:00:03.4]}
73... Kf6 {[%clk 0:00:02.6]} 74. Rxg5 {[%clk 0:00:04.3]} 74... Ke6 {[%clk
0:00:03.1]} 75. Rf5 {[%clk 0:00:04.3]} 75... Kd6 {[%clk 0:00:04]} 76. Kg5 {[%clk
0:00:05.2]} 76... Ke6 {[%clk 0:00:04.8]} 77. Kg6 {[%clk 0:00:05.7]} 77... Kd6
{[%clk 0:00:05.5]} 78. Kf6 {[%clk 0:00:06.6]} 78... Kc6 {[%clk 0:00:05.6]} 79.
Re5 {[%clk 0:00:07.5]} 79... Kd7 {[%clk 0:00:06.2]} 80. Kf5 {[%clk 0:00:08.4]}
80... Kd6 {[%clk 0:00:07]} 81. Kf6 {[%clk 0:00:08.7]} 81... Kd7 {[%clk
0:00:07.4]} 82. Re6 {[%clk 0:00:09.1]} 82... Kc7 {[%clk 0:00:07.5]} 83. Ke5
{[%clk 0:00:10]} 83... Kd7 {[%clk 0:00:07.9]} 84. Kd5 {[%clk 0:00:10.9]} 84...
Kc7 {[%clk 0:00:08.1]} 85. Rd6 {[%clk 0:00:11.5]} 85... Kb7 {[%clk 0:00:08.3]}
86. Kc5 {[%clk 0:00:11.5]} 1-0